bitfinex-derivatives/quotes_BTCF0:USTF0_20250309
["timestamp","ask_amount","ask_price","bid_price","bid_amount"]
[1741528922463,0.1557,83700.0,83699.0,0.1194972]
[1741528922659,0.19716,83717.0,83701.0,0.0597468]
[1741528922861,0.0597476,83701.0,83698.0,0.1678]
[1741528923064,0.1195086,83691.0,83690.0,0.48031]
[1741528923371,0.0597418,83709.0,83691.0,0.0597543]
[1741528923668,0.00017928,83699.0,83698.0,0.1194986]
[1741528923864,0.11967648,83699.0,83698.0,0.1194986]
[1741528924065,0.059745,83705.0,83698.0,0.1581]
[1741528924272,0.1194894,83705.0,83704.0,0.1194879]
[1741528924472,0.1194894,83705.0,83698.0,0.1581]
[1741528924473,0.1194972,83699.0,83698.0,0.1581]
[1741528924776,0.1195086,83691.0,83690.0,0.36097928]
[1741528925763,0.2828086,83691.0,83690.0,0.36097928]
[1741528926169,0.3608,83722.0,83690.0,0.36097928]
[1741528926372,0.00075102,83724.0,83690.0,0.36097928]
[1741528926373,0.00075102,83724.0,83708.0,0.1194843]
[1741528926570,0.1194815,83710.0,83709.0,0.1608]
[1741528926871,0.1194843,83708.0,83707.0,0.1914]
[1741528927268,0.1562,83709.0,83707.0,0.1914]
[1741528927470,0.2191,83747.0,83723.0,0.1194629]
[1741528927675,0.00011773,83732.0,83723.0,0.4802629]
[1741528928171,0.1194583,83727.0,83723.0,0.4802629]
[1741528928470,0.0597257,83731.0,83723.0,0.6856]
[1741528928674,0.1194615,83724.0,83723.0,0.5285]
[1741528929169,0.1194615,83724.0,83723.0,0.3608]
[1741528929375,0.1194615,83724.0,83723.0,0.3618]
[1741528929575,0.2833615,83724.0,83723.0,0.3618]
[1741528930769,0.2833615,83724.0,83723.0,0.35755493]
[1741528932072,0.4468615,83724.0,83723.0,0.35755493]
[1741528932969,0.4468615,83724.0,83723.0,0.47701783]
[1741528933174,0.2833615,83724.0,83723.0,0.47701783]
[1741528933477,0.2833615,83724.0,83723.0,0.35755493]
[1741528933680,0.1639,83724.0,83723.0,0.47701783]
[1741528933865,0.2833615,83724.0,83723.0,0.71835493]
[1741528934071,0.2833615,83724.0,83723.0,0.35755493]
[1741528934572,0.2833615,83724.0,83723.0,0.71835493]
[1741528934774,0.2833615,83724.0,83723.0,0.83781783]
[1741528934971,0.1194615,83724.0,83723.0,0.83781783]
[1741528935475,0.1194615,83724.0,83723.0,1.03525493]
[1741528935774,0.1194615,83724.0,83723.0,0.88445493]
[1741528936475,0.1194615,83724.0,83723.0,0.71835493]
[1741528938484,0.1194615,83724.0,83723.0,0.83781783]
[1741528938681,0.1194615,83724.0,83723.0,0.71835493]
[1741528938981,0.1194615,83724.0,83723.0,0.35755493]
[1741528939682,0.1194615,83724.0,83723.0,0.35472008]
[1741528939982,0.1194615,83724.0,83699.0,0.0597479]
[1741528939983,0.1195072,83692.0,83691.0,0.00912015]
[1741528940284,0.11951,83690.0,83689.0,0.3608]
[1741528940684,0.11951,83690.0,83689.0,0.4803115]
[1741528940685,0.11851,83690.0,83689.0,0.4803115]
[1741528940885,0.11851,83690.0,83689.0,0.3608]
[1741528941186,0.11851,83690.0,83689.0,0.4803115]
[1741528941483,0.152,83691.0,83690.0,0.11951]
[1741528941673,0.2095502,83697.0,83696.0,0.1195015]
[1741528941878,0.2095502,83697.0,83696.0,0.3608]
[1741528942080,0.3641502,83697.0,83696.0,0.3608]
[1741528942482,0.00017916,83698.0,83696.0,0.3608]
[1741528942483,0.00017916,83698.0,83697.0,0.1195001]
[1741528942786,0.11967776,83698.0,83697.0,0.2809001]
[1741528943083,0.00017916,83698.0,83696.0,0.3608]
[1741528943287,0.4517001,83697.0,83696.0,0.3608]
[1741528943480,0.6063001,83697.0,83696.0,0.3608]
[1741528944489,0.1792618,83693.0,83692.0,0.119506]
[1741528944687,0.0597542,83692.0,83689.0,0.3608]
[1741528944890,0.1195215,83682.0,83681.0,0.12878114]
[1741528945094,0.1195215,83682.0,83681.0,0.00925934]
[1741528945583,0.3366,83684.0,83681.0,0.00017916]
[1741528945782,0.45612,83684.0,83683.0,0.11952]
[1741528945977,0.3366,83684.0,83683.0,0.11952]
[1741528946185,0.1824,83697.0,83696.0,0.1195015]
[1741528946494,0.2191,83718.0,83697.0,0.1195001]
[1741528946688,0.1792156,83715.0,83714.0,0.119474]
[1741528946889,0.0597399,83712.0,83709.0,0.3608]
[1741528947089,0.1194915,83703.0,83702.0,0.3608]
[1741528947493,0.0597449,83705.0,83702.0,0.3608]
[1741528947494,0.1194889,83705.0,83704.0,0.1194886]
[1741528947792,0.1194901,83704.0,83703.0,0.1539]
[1741528947980,0.2966901,83704.0,83703.0,0.1539]
[1741528948185,0.1184901,83704.0,83703.0,0.2733915]
[1741528948386,0.0597437,83706.0,83703.0,0.3897455]
[1741528948581,0.1194874,83706.0,83705.0,0.1194872]
[1741528948897,0.1194901,83704.0,83703.0,0.4494909]
[1741528949088,0.1194901,83704.0,83703.0,0.33]
[1741528949898,0.1194901,83704.0,83703.0,0.1539]
[1741528950390,0.1772,83710.0,83703.0,0.1539]
[1741528950580,0.006,83715.0,83712.0,0.1194786]
[1741528950784,0.11959493,83713.0,83712.0,0.1194786]
[1741528951185,0.00011773,83713.0,83712.0,0.1194786]
[1741528951385,0.00011773,83713.0,83712.0,0.2986786]
[1741528951789,0.11959493,83713.0,83712.0,0.1792]
[1741528952093,0.1194815,83710.0,83709.0,0.3608]
[1741528952480,0.00011773,83713.0,83712.0,0.1194786]
[1741528952681,0.12659493,83713.0,83712.0,0.1204786]
[1741528952986,0.12659493,83713.0,83712.0,0.1802]
[1741528954098,0.12659493,83713.0,83712.0,0.001]
[1741528954288,0.12659493,83713.0,83712.0,0.3618]
[1741528955091,0.12659493,83713.0,83712.0,0.001]
[1741528955389,0.12659493,83713.0,83712.0,0.3618]
[1741528956094,0.11959493,83713.0,83712.0,0.4802786]
[1741528956291,0.11959493,83713.0,83712.0,0.3608]
[1741528956491,0.1194786,83712.0,83711.0,0.1944]
[1741528956982,0.2965786,83712.0,83711.0,0.5552]
[1741528957390,0.2955786,83712.0,83711.0,0.6746801]
[1741528957596,0.00711773,83713.0,83712.0,0.1194786]
[1741528957788,0.00711773,83713.0,83712.0,0.4910786]
[1741528958092,0.1808,83728.0,83712.0,0.4910786]
[1741528958093,0.00431735,83734.0,83728.0,0.1194558]
[1741528958298,0.35429195,83729.0,83728.0,0.4802558]
[1741528958500,0.17510555,83729.0,83728.0,0.4802558]
[1741528958697,0.13325368,83729.0,83728.0,0.85699834]
[1741528958992,0.00431735,83734.0,83733.0,0.1194487]
[1741528959197,0.00431735,83734.0,83733.0,0.13294353]
[1741528959494,0.12376455,83734.0,83733.0,0.13294353]
[1741528959694,0.12376455,83734.0,83728.0,0.72232]
[1741528959997,0.0597285,83728.0,83723.0,0.3608]
[1741528960191,0.1194615,83724.0,83723.0,0.3608]
[1741528960382,0.1194615,83724.0,83723.0,0.4802629]
[1741528960589,0.0597287,83727.0,83724.0,0.0597302]
[1741528960791,0.1194587,83726.0,83725.0,0.1802]
[1741528960989,0.3484885,83726.0,83725.0,0.2996601]
[1741528961188,0.2510298,83726.0,83725.0,0.2996601]
[1741528961391,0.2510298,83726.0,83725.0,0.1802]
[1741528961692,0.1913,83726.0,83724.0,0.1917]
[1741528961884,0.1913,83726.0,83723.0,0.3608]
[1741528961885,0.1194615,83724.0,83723.0,0.3608]
[1741528962199,0.1194615,83724.0,83723.0,0.3618]
[1741528963395,0.00431735,83734.0,83723.0,0.89296]
[1741528963597,1e-08,83734.0,83732.0,0.3608]
[1741528963798,0.36080001,83734.0,83723.0,0.3618]
[1741528963986,1e-08,83734.0,83733.0,0.1194487]
[1741528964295,1e-08,83734.0,83733.0,0.3118487]
[1741528965794,0.1194421,83738.0,83737.0,0.179161]
[1741528965989,0.35298,83743.0,83741.0,0.1194358]
[1741528965990,0.1194359,83742.0,83741.0,0.1194358]
[1741528966290,0.3039358,83742.0,83735.0,0.3608]
[1741528966595,0.0597272,83729.0,83728.0,0.1791781]
[1741528966794,0.1791816,83729.0,83728.0,0.1791781]
[1741528967200,0.1791816,83729.0,83728.0,0.0597266]
[1741528967606,0.1194572,83727.0,83726.0,0.0597291]
[1741528967999,0.1767,83728.0,83727.0,0.1194572]
[1741528968301,0.1767,83728.0,83727.0,0.3049572]
[1741528968504,0.2961558,83728.0,83727.0,0.3049572]
[1741528968696,0.1194572,83727.0,83726.0,0.3608]
[1741528968904,0.1194658,83721.0,83719.0,0.1194685]
[1741528969202,0.1194658,83721.0,83717.0,0.21205683]
[1741528972595,0.1194658,83721.0,83713.0,0.28627551]
[1741528972596,0.1194758,83714.0,83713.0,0.28627551]
[1741528972898,0.1194758,83714.0,83692.0,0.3608]
[1741528972899,0.1195058,83693.0,83692.0,0.3608]
[1741528973292,0.3826,83694.0,83682.0,0.21390895]
[1741528973493,0.1195186,83684.0,83682.0,0.21390895]
[1741528973802,0.2850786,83684.0,83682.0,0.21390895]
[1741528974694,0.4706786,83684.0,83682.0,0.21390895]
[1741528976190,0.4706786,83684.0,83683.0,0.3648]
[1741528976791,0.4706786,83684.0,83683.0,0.3628]
[1741528976996,0.4706786,83684.0,83661.0,0.3608]
[1741528976997,0.9131611,83684.0,83661.0,0.3608]
[1741528977198,0.11955,83662.0,83661.0,0.3608]
[1741528977394,0.11955,83662.0,83658.0,0.1841]
[1741528977595,0.1195543,83659.0,83658.0,0.1841]
[1741528977897,0.1195543,83659.0,83658.0,0.6644558]
[1741528978103,0.1195543,83659.0,83658.0,0.5449]
[1741528978899,0.0597764,83660.0,83653.0,0.2015]
[1741528979103,0.1195615,83654.0,83653.0,0.3210594]
[1741528979300,0.3952,83658.0,83653.0,0.2015]
[1741528979506,0.3952,83658.0,83657.0,0.1195572]
[1741528979507,0.5147573,83658.0,83657.0,0.1195572]
[1741528979801,0.1195524,83661.0,83660.0,0.1195515]
[1741528980199,0.0597751,83662.0,83658.0,0.4205778]
[1741528980503,0.3952,83664.0,83659.0,0.2047]
[1741528980698,0.1195529,83660.0,83659.0,0.5188535]
[1741528980895,0.1195529,83660.0,83659.0,0.3993]
[1741528981203,0.09832955,83670.0,83669.0,0.11954]
[1741528981504,0.09832955,83670.0,83660.0,0.19132]
[1741528981505,0.1195515,83661.0,83660.0,0.19132]
[1741528981705,0.0597737,83664.0,83660.0,0.19132]
[1741528981706,0.0597733,83665.0,83661.0,0.003]
[1741528982002,0.09832955,83670.0,83669.0,0.11954]
[1741528982202,0.09832955,83670.0,83669.0,0.48034]
[1741528982501,0.22186815,83670.0,83669.0,0.48034]
[1741528982900,0.19986815,83670.0,83669.0,0.68214]
[1741528983205,0.19986815,83670.0,83669.0,0.3608]
[1741528983401,0.58576815,83670.0,83669.0,0.48034]
[1741528983594,0.58576815,83670.0,83669.0,0.3608]
[1741528984801,0.74516815,83670.0,83669.0,0.3608]
[1741528985108,0.6688386,83670.0,83669.0,0.3608]
[1741528985505,0.6688386,83670.0,83663.0,0.1869]
[1741528985506,0.1195515,83661.0,83648.0,0.3608]
[1741528985803,0.7505011,83670.0,83648.0,0.1869]
[1741528985804,0.1195658,83651.0,83648.0,0.1869]
[1741528986003,0.2780858,83651.0,83641.0,0.3608]
[1741528986205,0.2780858,83651.0,83650.0,9e-08]
[1741528986206,0.8400869,83651.0,83650.0,9e-08]
[1741528986403,0.4792869,83651.0,83650.0,9e-08]
[1741528986609,0.8648869,83651.0,83650.0,9e-08]
[1741528988304,0.8678869,83651.0,83650.0,9e-08]
[1741528989313,1.0178869,83651.0,83650.0,9e-08]
[1741528989514,1.1249869,83651.0,83650.0,9e-08]
[1741528989999,0.1196144,83617.0,83616.0,0.3608]
[1741528990196,0.1196144,83617.0,83601.0,0.55216]
[1741528990197,0.1196344,83603.0,83602.0,0.4061]
[1741528990606,0.1196344,83603.0,83602.0,0.5257358]
[1741528990806,0.15644,83607.0,83606.0,0.1196301]
[1741528991106,0.00064,83633.0,83632.0,0.1195929]
[1741528991309,0.0597925,83638.0,83637.0,0.1195858]
[1741528991503,0.0597908,83640.0,83632.0,0.7651]
[1741528991504,0.1195837,83639.0,83638.0,0.1195815]
[1741528991696,0.1195858,83637.0,83636.0,0.2033]
[1741528991907,0.00017941,83641.0,83640.0,0.1195815]
[1741528992308,0.00068,83650.0,83646.0,0.0597864]
[1741528992510,0.00068,83650.0,83649.0,0.3608]
[1741528992511,0.1195672,83650.0,83649.0,0.3608]
[1741528992807,0.1195815,83640.0,83639.0,0.3608]
[1741528992999,0.1195815,83640.0,83639.0,0.36188733]
[1741528993205,0.1195815,83640.0,83639.0,0.00108733]
[1741528993606,0.1195958,83630.0,83624.0,0.3608]
[1741528993909,0.68159681,83630.0,83629.0,1e-08]
[1741528994109,0.83159681,83630.0,83629.0,1e-08]
[1741528994810,0.70479681,83630.0,83629.0,1e-08]
[1741528995305,0.15508,83632.0,83631.0,0.1195944]
[1741528995507,0.004,83641.0,83640.0,0.1195815]
[1741528995710,0.1195944,83634.0,83633.0,0.1195914]
[1741528996007,0.15432,83642.0,83633.0,0.1195914]
[1741528996008,0.1195423,83668.0,83647.0,0.1195715]
[1741528996215,0.3608,83679.0,83657.0,0.1195572]
[1741528996506,0.3608,83679.0,83658.0,0.1195558]
[1741528996507,0.1195558,83659.0,83658.0,0.1195558]
[1741528996707,0.1195543,83659.0,83658.0,0.199]
[1741528997104,0.55332,83659.0,83643.0,0.1195766]
[1741528997305,0.1195758,83644.0,83643.0,0.199]
[1741528997624,0.1195758,83644.0,83643.0,0.19917928]
[1741528997912,0.1195758,83644.0,83643.0,0.00017928]
[1741528998302,0.1195758,83644.0,83631.0,0.199]
[1741528998303,0.5187758,83644.0,83631.0,0.199]
[1741528998504,0.1195929,83632.0,83631.0,0.199]
[1741528998714,0.1196029,83625.0,83624.0,0.199]
[1741528999011,0.1196187,83614.0,83611.0,0.3608]
[1741528999209,0.1196215,83612.0,83611.0,0.3608]
[1741528999413,0.1196258,83609.0,83608.0,0.00879731]
[1741528999604,0.256012,83611.0,83603.0,0.0001794]
[1741528999809,0.119633,83604.0,83603.0,0.0001794]
[1741529000513,0.119633,83604.0,83603.0,0.5589794]
[1741529000712,0.119633,83604.0,83603.0,0.0001794]
[1741529002319,0.119633,83604.0,83603.0,0.0018099]
[1741529002615,0.271313,83604.0,83603.0,0.0018099]
[1741529003121,0.27650253,83604.0,83603.0,0.0018099]
[1741529003920,0.271313,83604.0,83603.0,0.0018099]
[1741529004417,0.15144,83604.0,83603.0,0.0018099]
[1741529004618,0.271073,83604.0,83603.0,0.0018099]
[1741529005515,0.47227401,83604.0,83603.0,0.0018099]
[1741529005715,0.35264101,83604.0,83590.0,0.3608]
[1741529005915,0.35264101,83604.0,83567.0,0.19148]
[1741529005916,0.0598258,83591.0,83579.0,0.3608]
[1741529006116,0.1196802,83571.0,83570.0,0.2043]
[1741529006416,0.119706,83553.0,83552.0,0.3608]
[1741529006618,0.119706,83554.0,83553.0,0.1197034]
[1741529006831,0.119706,83553.0,83552.0,0.3608]
[1741529007517,0.119716,83546.0,83545.0,0.00017951]
[1741529007717,0.0598622,83541.0,83529.0,0.35417681]
[1741529008015,0.0598622,83541.0,83529.0,0.35357681]
[1741529008016,0.11865085,83530.0,83529.0,0.35357681]
[1741529008317,0.1197662,83511.0,83500.0,0.1]
[1741529008520,0.2698462,83511.0,83500.0,0.1]
[1741529008710,0.2698462,83511.0,83500.0,0.2197813]
[1741529008911,0.2698462,83511.0,83502.0,0.52503344]
[1741529009314,0.2698462,83511.0,83500.0,0.1]
[1741529009315,0.0598877,83505.0,83473.0,0.3608]
[1741529009612,0.0598877,83505.0,83433.0,0.3608]
[1741529009613,0.3608,83486.0,83433.0,0.3608]
[1741529009921,0.32324952,83470.0,83453.0,0.02395]
[1741529010106,0.45806101,83469.0,83463.0,0.3608]
[1741529010310,0.1198437,83457.0,83456.0,0.77365883]
[1741529010611,0.1198437,83457.0,83329.0,0.3608]
[1741529010612,0.5996549,83397.0,83329.0,0.3608]
[1741529010812,0.3608,83369.0,83359.0,0.02395]
[1741529011010,0.26274,83368.0,83366.0,0.02395]
[1741529011212,0.3608,83369.0,83368.0,0.38081175]
[1741529011411,0.00017984,83372.0,83368.0,0.38081175]
[1741529011412,0.00017984,83372.0,83371.0,0.1199673]
[1741529011611,0.00017984,83372.0,83371.0,0.52472905]
[1741529011815,0.3608,83405.0,83371.0,0.52472905]
[1741529011816,0.1198972,83420.0,83393.0,0.28480175]
[1741529012114,0.00894149,83431.0,83428.0,0.11992]
[1741529012311,0.32324952,83440.0,83430.0,0.31889279]
[1741529012513,0.3608,83431.0,83372.0,0.3608]
[1741529012713,0.3608,83409.0,83393.0,0.3608]
[1741529012913,0.3608,83451.0,83421.0,0.28480175]
[1741529013120,0.3608,83435.0,83404.0,0.3608]
[1741529013315,0.1198861,83428.0,83405.0,0.43873279]
[1741529013511,0.18668,83434.0,83405.0,0.11984]
[1741529013512,0.18688,83434.0,83405.0,0.11984]
[1741529013826,0.18688,83434.0,83395.0,0.2053]
[1741529013827,0.1199084,83412.0,83406.0,0.07323613]
[1741529014015,0.3608,83407.0,83364.0,0.3608]
[1741529014215,0.3608,83370.0,83368.0,0.26085175]
[1741529014519,0.0599795,83377.0,83368.0,0.02395]
[1741529014714,0.0599795,83377.0,83363.0,0.19168]
[1741529014715,0.1355,83386.0,83371.0,0.26085175]
[1741529014911,0.3608,83387.0,83383.0,0.02395]
[1741529015113,0.06004658,83385.0,83370.0,0.00017984]
[1741529015429,0.1199875,83357.0,83356.0,0.00179938]
[1741529015722,0.189,83357.0,83319.0,0.3608]
[1741529016026,0.3323,83356.0,83341.0,0.02395]
[1741529016322,0.36102821,83357.0,83352.0,0.02295]
[1741529016511,2.48506416,83376.0,83347.0,0.0600004]
[1741529016512,2.48506416,83376.0,83356.0,0.3608]
[1741529016711,0.0599722,83387.0,83375.0,0.02295]
[1741529016917,0.3608,83388.0,83378.0,0.02295]
[1741529016918,0.0599733,83386.0,83378.0,0.02295]
[1741529017123,0.1199644,83373.0,83372.0,0.1967]
[1741529017314,0.18988,83373.0,83358.0,0.31889279]
[1741529017626,0.1199875,83357.0,83356.0,0.0006]
[1741529017924,0.1199875,83357.0,83336.0,0.3608]
[1741529017925,0.3608,83357.0,83350.0,0.1979]
[1741529018124,0.3608,83357.0,83336.0,0.3608]
[1741529018418,0.3608,83349.0,83333.0,0.02295]
[1741529018625,0.5252,83348.0,83333.0,0.02295]
[1741529018821,0.5252,83348.0,83331.0,0.16921329]
[1741529019025,0.5252,83348.0,83332.0,0.02307059]
[1741529019220,0.52537995,83348.0,83332.0,0.00012059]
[1741529019414,0.3608,83333.0,83301.0,0.1904]
[1741529019717,0.19036,83332.0,83331.0,0.1200249]
[1741529020032,0.36248,83350.0,83333.0,0.57974454]
[1741529020323,0.5607,83360.0,83326.0,0.1979]
[1741529020324,0.00168,83360.0,83359.0,0.1199846]
[1741529020624,0.28068398,83371.0,83370.0,0.38082055]
[1741529020818,0.00017995,83368.0,83365.0,0.26085175]
[1741529021017,0.00017995,83368.0,83367.0,0.4807731]
[1741529021218,0.18996,83382.0,83381.0,0.1199529]
[1741529021423,0.54253322,83387.0,83386.0,0.38079745]
[1741529021424,0.23183322,83387.0,83386.0,0.38079745]
[1741529021626,0.23023322,83387.0,83386.0,0.94054454]
[1741529021826,0.23023322,83387.0,83386.0,1.06049024]
[1741529022028,0.54234952,83420.0,83398.0,0.26085175]
[1741529022029,0.00168,83420.0,83398.0,0.26085175]
[1741529022325,0.85095164,83452.0,83385.0,0.18972]
[1741529022326,0.18968,83442.0,83419.0,0.57970454]
[1741529022513,0.3608,83443.0,83430.0,0.00132392]
[1741529022718,0.63345164,83452.0,83451.0,0.1198523]
[1741529022923,0.3608,83463.0,83462.0,0.1198365]
[1741529023124,0.3608,83463.0,83462.0,0.17692175]
[1741529023327,0.00017972,83471.0,83462.0,0.49581454]
[1741529023620,0.00017972,83471.0,83466.0,0.00132392]
[1741529023621,0.1198293,83467.0,83466.0,0.00132392]
[1741529023823,0.12000332,83471.0,83470.0,0.17692175]
[1741529024027,0.12000332,83471.0,83466.0,0.00132392]
[1741529024219,0.12000332,83471.0,83429.0,0.3608]
[1741529024220,0.1198466,83455.0,83429.0,0.3608]
[1741529024421,0.0599351,83439.0,83437.0,0.31889279]
[1741529024622,0.18912,83440.0,83435.0,0.19192]
[1741529024925,0.18912,83440.0,83424.0,0.17692175]
[1741529025142,0.119904,83415.0,83404.0,0.19192]
[1741529025428,0.119904,83415.0,83400.0,0.19192]
[1741529025429,0.0599536,83413.0,83400.0,0.19192]
[1741529025627,0.18916,83415.0,83400.0,0.19192]
[1741529026127,0.1199412,83390.0,83384.0,0.19192]
[1741529026324,0.3608,83389.0,83385.0,0.2013]
[1741529026625,0.1199457,83386.0,83385.0,0.2013]
[1741529026821,0.0956457,83386.0,83385.0,0.2013]
[1741529027016,0.0016,83389.0,83385.0,0.2013]
[1741529027228,0.18813984,83395.0,83385.0,0.2013]
[1741529027524,0.3608,83406.0,83389.0,0.0599707]
[1741529027725,0.3608,83415.0,83391.0,0.0599688]
[1741529027935,0.0599528,83414.0,83389.0,0.0599707]
[1741529028125,0.1199163,83407.0,83404.0,0.1199184]
[1741529028321,0.1199163,83407.0,83390.0,0.0599699]
[1741529028322,0.3608,83408.0,83405.0,0.3964]
[1741529028632,0.119917,83406.0,83405.0,0.3964]
[1741529029526,0.62465102,83408.0,83405.0,0.26422773]
[1741529029527,0.56469372,83408.0,83405.0,0.26422773]
[1741529029727,0.56309372,83408.0,83407.0,0.1199155]
[1741529029933,0.00017984,83415.0,83414.0,0.1199055]
[1741529030139,0.12008384,83415.0,83414.0,0.19196]
[1741529030431,0.119927,83399.0,83398.0,0.00017984]
[1741529031325,0.18612,83402.0,83401.0,0.1199242]
[1741529031525,0.00017984,83415.0,83414.0,0.1199055]
[1741529031725,0.00017984,83415.0,83413.0,0.1918]
[1741529031926,0.00017984,83415.0,83413.0,0.3117069]
[1741529032232,0.3608,83414.0,83413.0,0.1918]
[1741529032431,0.3608,83414.0,83398.0,0.00017984]
[1741529032733,0.119927,83399.0,83398.0,0.00017984]
[1741529033130,0.480727,83399.0,83398.0,0.00017984]
[1741529034232,0.480727,83399.0,83372.0,0.3608]
[1741529034233,0.1199515,83382.0,83374.0,0.19196]
[1741529034435,0.3608,83382.0,83373.0,0.03046216]
[1741529034625,0.119963,83374.0,83373.0,0.03046216]
[1741529034937,0.1199875,83357.0,83350.0,0.19222448]
[1741529035234,0.4807875,83357.0,83350.0,0.19222448]
[1741529035436,0.3608,83357.0,83350.0,6e-08]
[1741529035733,0.4807961,83351.0,83350.0,6e-08]
[1741529036035,0.6307961,83351.0,83350.0,6e-08]
[1741529036226,0.36109861,83351.0,83314.0,0.0600242]
[1741529036424,0.0600164,83326.0,83319.0,0.1200406]
[1741529036629,0.18324,83327.0,83326.0,0.1200321]
[1741529036832,0.18324,83327.0,83313.0,0.36072375]
[1741529036833,0.1200321,83326.0,83325.0,0.2028]
[1741529037038,0.18324,83327.0,83313.0,0.19196]
[1741529037334,0.120049,83315.0,83314.0,0.2028]
[1741529037532,0.120049,83315.0,83313.0,0.19196]
[1741529037533,0.18252,83315.0,83313.0,0.19196]
[1741529037734,0.18252,83315.0,83300.0,0.1]
[1741529037735,0.3608,83314.0,83300.0,0.1]
[1741529037926,0.3608,83314.0,83305.0,0.0600307]
[1741529038128,0.3608,83314.0,83306.0,0.2028]
[1741529038330,0.3608,83314.0,83313.0,0.1200508]
[1741529038532,0.08402,83313.0,83311.0,0.1200523]
[1741529038728,0.1200586,83308.0,83301.0,0.0600335]
[1741529038940,0.1200647,83304.0,83303.0,0.0600322]
[1741529039139,0.08402,83313.0,83299.0,0.06183584]
[1741529039332,0.00018006,83312.0,83311.0,0.1200537]
[1741529039538,0.00018006,83312.0,83296.0,0.3608]
[1741529039735,0.1200681,83301.0,83280.0,0.008635]
[1741529040045,0.5454,83301.0,83281.0,0.19204]
[1741529040541,0.1200923,83286.0,83285.0,0.1200874]
[1741529040739,0.1200923,83286.0,83262.0,0.3608]
[1741529040740,0.1201201,83265.0,83262.0,0.3608]
[1741529040942,0.3608,83269.0,83243.0,0.3608]
[1741529041145,0.3608,83253.0,83252.0,0.1201388]
[1741529041331,0.06006,83265.0,83258.0,0.12013]
[1741529041532,0.381,83268.0,83243.0,0.3608]
[1741529041533,0.1201356,83255.0,83243.0,0.3608]
[1741529041738,0.4046,83264.0,83263.0,0.1201229]
[1741529041943,0.1968,83264.0,83263.0,0.1201229]
[1741529042239,0.3608,83284.0,83263.0,0.1201229]
[1741529042240,0.2063,83274.0,83270.0,0.060056]
[1741529042441,0.03002,83265.0,83251.0,0.19204]
[1741529042657,0.39058,83264.0,83251.0,0.19204]
[1741529042857,0.58348,83264.0,83251.0,0.19204]
[1741529043048,0.03002,83265.0,83264.0,0.1201215]
[1741529043247,0.03002,83265.0,83264.0,0.4809215]
[1741529043455,0.3608,83294.0,83269.0,0.0600567]
[1741529043648,0.2063,83293.0,83269.0,0.0600567]
[1741529043849,0.3608,83280.0,83264.0,0.7484]
[1741529044047,0.2663503,83279.0,83264.0,0.3876]
[1741529044257,0.18416,83278.0,83264.0,0.3876]
[1741529044453,0.1200993,83280.0,83274.0,0.1201057]
[1741529044656,0.00018017,83279.0,83275.0,0.38772]
[1741529044862,0.00018017,83279.0,83278.0,0.1201013]
[1741529045054,0.54685221,83301.0,83278.0,0.1201013]
[1741529045255,0.33625221,83301.0,83300.0,0.1200696]
[1741529045456,0.50415438,83302.0,83301.0,0.180102]
[1741529045457,0.00164,83302.0,83301.0,0.180102]
[1741529045756,0.18324,83334.0,83301.0,0.180102]
[1741529045757,9e-08,83313.0,83311.0,0.1200537]
[1741529046062,9e-08,83313.0,83312.0,0.60717417]
[1741529046256,5e-08,83320.0,83319.0,0.1200422]
[1741529046457,5e-08,83320.0,83319.0,0.57978076]
[1741529046664,0.45880988,83343.0,83319.0,1.19625624]
[1741529046962,0.02510254,83356.0,83333.0,0.43865809]
[1741529047149,0.02510254,83356.0,83334.0,0.23095797]
[1741529047350,0.01303508,83358.0,83357.0,0.1199875]
[1741529047554,8e-08,83358.0,83357.0,0.3121475]
[1741529047761,0.2106,83378.0,83365.0,0.119976]
[1741529047762,0.00017995,83366.0,83365.0,0.119976]
[1741529047962,0.00017995,83366.0,83365.0,0.30454072]
[1741529048264,0.3608,83388.0,83365.0,0.30454072]
[1741529048265,0.71298914,83399.0,83398.0,0.1199285]
[1741529048561,0.3608,83410.0,83398.0,0.1199285]
[1741529048562,0.1992,83421.0,83398.0,0.73632]
[1741529048766,0.3190954,83421.0,83420.0,0.1198969]
[1741529049064,0.7216,83425.0,83420.0,0.19344472]
[1741529049359,0.1926,83431.0,83430.0,0.1198825]
[1741529049664,0.00017984,83431.0,83430.0,0.2698825]
[1741529049965,4e-08,83431.0,83430.0,1.43900722]
[1741529050156,0.27046188,83441.0,83440.0,0.1198681]
[1741529050357,0.27046188,83441.0,83440.0,0.6148481]
[1741529050557,0.73469906,83458.0,83457.0,0.1198437]
[1741529050862,0.73393906,83458.0,83457.0,0.19212]
[1741529051059,0.85378136,83458.0,83457.0,0.19344472]
[1741529051257,0.73393906,83458.0,83457.0,0.31328842]
[1741529051458,0.37313906,83458.0,83457.0,0.31328842]
[1741529051963,0.37313906,83458.0,83457.0,0.46328842]
[1741529052358,0.85378136,83458.0,83457.0,0.19344472]
[1741529052559,0.85378136,83458.0,83436.0,0.19204]
[1741529052759,0.85378136,83458.0,83425.0,0.3608]
[1741529052760,0.3608,83450.0,83425.0,0.3608]
[1741529052965,0.4806868,83427.0,83422.0,0.19204]
[1741529053361,0.3608,83427.0,83390.0,0.19204]
[1741529053556,0.3608,83411.0,83397.0,0.0599646]
[1741529053760,0.1199386,83391.0,83390.0,0.19204]
[1741529053961,0.0599599,83404.0,83399.0,0.1199261]
[1741529054155,0.00017984,83412.0,83396.0,0.00017984]
[1741529054356,4e-08,83412.0,83411.0,0.1199098]
[1741529054665,4e-08,83412.0,83397.0,0.0599644]
[1741529054874,4e-08,83412.0,83390.0,0.63069809]
[1741529054875,4e-08,83412.0,83411.0,0.1199098]
[1741529055262,4e-08,83412.0,83411.0,0.28769034]
[1741529055456,0.13179,83460.0,83439.0,0.1198696]
[1741529055457,0.2109,83440.0,83439.0,0.1198696]
[1741529055671,0.192,83448.0,83447.0,0.1198581]
[1741529055863,0.192,83448.0,83436.0,0.192]
[1741529055864,0.5528,83448.0,83436.0,0.192]
[1741529056063,0.2109,83456.0,83455.0,0.1198466]
[1741529056259,0.2708227,83456.0,83433.0,0.0599385]
[1741529056465,0.119864,83443.0,83437.0,0.0599361]
[1741529056661,0.3608,83447.0,83446.0,0.1198595]
[1741529056964,0.00017984,83454.0,83449.0,0.1198541]
[1741529057161,0.00017984,83454.0,83445.0,0.0833]
[1741529057362,0.00017984,83454.0,83442.0,0.1198642]
[1741529057657,4e-08,83454.0,83453.0,0.1198494]